[Event "SixDays Budapest IM-B January 2024"]
[Site "Budapest"]
[Date "2024.01.31"]
[Round "7.3"]
[White "Semprun Martinez, Fernando"]
[Black "Nemitz, Alfred"]
[Result "1/2-1/2"]
[ECO "A40"]
[WhiteElo "2071"]
[BlackElo "2223"]
[Annotator "TA"]
[PlyCount "106"]
[EventDate "2024.01.26"]
[EventType "tourn"]
[EventCountry "HUN"]
[SourceTitle "playchess.com"]
[Source "ChessBase"]
[SourceQuality "1"]
[TimeControl "5400+30"]

{[%evp 12,106,13,25,23,28,54,53,43,49,59,32,74,41,56,49,52,20,16,11,20,0,0,0,0,0,0,-24,-31,-43,-14,-78,-56,-50,-43,-58,0,0,0,0,0,0,134,127,121,131,123,133,147,135,137,141,130,152,154,143,220,133,213,202,266,256,222,244,255,245,290,248,244,289,292,293,285,259,235,204,269,8,8,8,20,8,8,0,4,0,0,0,0,0,0,0,0,0,0,0,0]} 1. d4 {[%emt 0:00:01]} Nf6 {[%emt 0:00:05]} 2. c4 {[%emt 0:00:09]} e6 {[%emt 0:00:04]} 3. g3 {[%emt 0:00:04]} Bb4+ {[%emt 0:01:14]} 4. Bd2 {[%emt 0:00:38]} a5 {[%emt 0:00:26]} 5. Bg2 {[%emt 0:00:33]} d5 {[%emt 0:00:44]} 6. Qc2 {[%emt 0:00:47]} O-O {[%emt 0:01:39]} 7. Nf3 {[%emt 0:00:56]} b6 {[%emt 0:05:46]} 8. O-O {[%emt 0:03:38]} Ra7 {[%emt 0:06:33]} 9. a3 {[%emt 0:04:29]} Bxd2 {[%emt 0:01:54] White is slightly better.} 10. Nbxd2 {[%emt 0:00:25]} Bb7 {[%emt 0:01:52]} 11. Ne5 {[%emt 0:05:24]} Nbd7 {[%emt 0:18:23]} 12. cxd5 {[%emt 0:12:08] White has more active pieces.} Nxe5 {[%emt 0:01:30]} 13. dxe5 {[%emt 0:00:01]} Nxd5 {[%emt 0:00:02][%cal Bf6d5,Bd5e7,Be7c6][%mdl 32]} 14. e4 {[%emt 0:00:39]} Ne7 {[%emt 0:00:19]} 15. Rfd1 {[%emt 0:00:48]} Nc6 {[%emt 0:06:08]} 16. Nb3 {[%emt 0:02:14] Inhibits Nd4.} Qe7 {[%emt 0:03:03]} 17. f4 {[%emt 0:00:28]} Raa8 {[%emt 0:06:15]} 18. Bf1 {[%emt 0:16:33]} Rfd8 {[%emt 0:03:42]} 19. Bb5 {[%emt 0:00:39]} Na7 {[%emt 0:14:40]} 20. Be2 {[%emt 0:04:17]} c5 {[%emt 0:01:01]} 21. a4 {[%emt 0:07:29]} (21. Nd2 $11) 21... Nc6 {[%emt 0:00:47]} 22. Bb5 {[%emt 0:01:39]} Nb4 {[%emt 0:04:00]} 23. Qe2 {[%emt 0:01:39]} Rxd1+ {[%emt 0:00:03]} ({Black should play} 23... h6 $15) 24. Rxd1 $11 {[%emt 0:00:32]} Rd8 {[%emt 0:00:03] Repels Rd7} 25. Rxd8+ {[%emt 0:02:37]} Qxd8 {[%emt 0:00:02]} 26. Qd2 {[%emt 0:00:23]} Qxd2 {[%emt 0:07:27]} (26... Qa8 $1 $11) 27. Nxd2 {[%emt 0:00:02][%mdl 4096] Endgame. KBN-KBN} Kf8 {[%emt 0:02:43]} 28. Nc4 {[%emt 0:02:06]} Bxe4 {[%emt 0:03:46]} 29. Nxb6 {[%emt 0:01:16]} Bc6 {[%emt 0:04:06]} 30. Bxc6 {[%emt 0:02:00]} Nxc6 $16 {[%emt 0:00:02] KN-KN} 31. Nd7+ {[%emt 0:00:16]} Ke7 {[%emt 0:00:05]} 32. Nxc5 {[%emt 0:00:08]} f6 {[%emt 0:00:18]} 33. Nd3 {[%emt 0:01:32]} (33. exf6+ gxf6 34. Na6 e5 $16) 33... fxe5 {[%emt 0:01:33]} (33... Nd4 $16 34. exf6+ gxf6) 34. fxe5 {[%emt 0:01:47]} Kf7 {[%emt 0:01:43]} (34... Nd4 $16 {keeps fighting.}) 35. Kf2 $18 {[%emt 0:00:10]} Kg6 {[%emt 0:00:08]} 36. Kf3 {[%emt 0:00:55]} Kf5 {[%emt 0:00:45]} 37. g4+ {[%emt 0:00:26]} Kg5 {[%emt 0:00:02]} 38. Kg3 {[%emt 0:00:25]} h5 {[%emt 0:00:51]} 39. h4+ {[%emt 0:00:15]} Kg6 {[%emt 0:00:27] [#]} 40. Nf4+ $1 {[%emt 0:10:32]} Kf7 {[%emt 0:00:02]} 41. Nxh5 {[%emt 0:00:20]} Nxe5 {[%emt 0:00:10]} 42. Nf4 {[%emt 0:00:26] Wards off Nd3} Kf6 {[%emt 0:03:32]} 43. b3 {[%emt 0:03:07]} g6 {[%emt 0:01:45] [#]} 44. h5 $2 {[%emt 0:02:14]} ({Only move:} 44. Ne2 $1 $18 {[%cal Re2d4]}) 44... gxh5 $11 {[%emt 0:00:49] The position is equal.} 45. gxh5 {[%emt 0:03:29] Black must now prevent h6.} Nc6 {[%emt 0:01:00]} 46. h6 {[%emt 0:06:13]} (46. Nd3 {simplifies} Kg5 47. Nc5 Kxh5 48. Kf4) 46... Nd4 {[%emt 0:00:12]} 47. b4 {[%emt 0:01:36]} axb4 {[%emt 0:00:13]} 48. a5 {[%emt 0:00:10]} b3 {[%emt 0:00:34]} 49. Nd3 {[%emt 0:00:13]} Kg6 {[%emt 0:01:05]} 50. a6 {[%emt 0:00:21] a7 is the strong threat.} Nc6 {[%emt 0:00:35]} 51. Kf4 {[%emt 0:02:05]} Kxh6 {[%emt 0:00:20]} 52. Ke3 {[%emt 0:00:26]} Kg5 {[%emt 0:00:36]} 53. Kd2 {[%emt 0:00:11]} Kf5 {[%emt 0:00:44] White really could win this.   Weighted Error Value: White=0.18 (very precise) /Black=0.17 (very precise) .  Missed win:     	White=1     	---        Mistake:       	White=1     	Black=4      Inaccurate:     	White=4     	Black=5      OK:         	White=20    	Black=18     Best:        	White=3     	Black=6      Strong:       	White=1     	---} 1/2-1/2

[Event "SixDays Budapest IM-B January 2024"]
[Site "Budapest"]
[Date "2024.01.31"]
[Round "7.4"]
[White "Srinath, Rao S.V."]
[Black "Mouhamad, Joachim"]
[Result "1-0"]
[ECO "B22"]
[WhiteElo "2260"]
[BlackElo "2316"]
[Annotator "TA"]
[PlyCount "94"]
[EventDate "2024.01.26"]
[EventType "tourn"]
[EventCountry "HUN"]
[SourceTitle "playchess.com"]
[Source "ChessBase"]
[SourceQuality "1"]
[TimeControl "5400+30"]

{[%evp 15,94,-34,-2,-29,-7,-5,-19,-26,0,0,0,-4,0,-45,-16,-100,-22,-116,-61,-68,-2,-10,-5,-4,97,93,114,116,129,141,177,187,193,182,185,175,254,259,308,275,321,324,452,164,384,393,367,126,160,183,165,162,168,150,262,260,368,353,370,312,443,432,477,455,504,508,478,464,478,466,533,539,1832,622,627,618,607,577,29989,29978,29990]} 1. e4 {[%emt 0:01:31][%cal Be2e4,Be4e5][%mdl 32]} c5 {[%emt 0:00:09]} 2. c3 {[%emt 0:00:04]} Nf6 {[%emt 0:00:20]} 3. e5 {[%emt 0:00:06]} Nd5 {[%emt 0:00:08]} 4. d4 {[%emt 0:00:05]} cxd4 {[%emt 0:00:09]} 5. Qxd4 {[%emt 0:00:03]} e6 6. Nf3 {[%emt 0:03:25]} Nc6 {[%emt 0:00:44]} 7. Qe4 {[%emt 0:00:06]} f5 {[%emt 0:00:29]} 8. Qe2 {[%emt 0:00:06]} Be7 {[%emt 0:11:04]} 9. g3 {[%emt 0:03:03]} (9. c4 {with more complications.} Bb4+ 10. Bd2 Nf4 11. Qe3) 9... O-O {[%emt 0:00:30]} 10. Bg2 {[%emt 0:00:16] [#]} b5 $1 {[%emt 0:04:47]} 11. O-O {[%emt 0:00:07] The position is equal.} (11. Qxb5 a5) 11... Qb6 {[%emt 0:07:43]} 12. Rd1 {[%emt 0:00:19]} a5 {[%emt 0:00:55]} 13. Nbd2 {[%emt 0:06:02]} Ba6 {[%emt 0:01:35]} 14. Nf1 {[%emt 0:02:42]} Bc5 {[%emt 0:09:20]} 15. Bf4 {[%emt 0:05:22]} (15. Ne3 $11 {keeps the balance.}) 15... Nce7 {[%emt 0:04:47]} (15... b4 $17 16. c4 a4 17. Rxd5 exd5) 16. Rac1 {[%emt 0:31:31]} (16. Bg5 $11 {remains equal.}) 16... Rac8 {[%emt 0:00:18]} ({Black should play} 16... b4 $17 17. Qd2 Nxf4 18. gxf4 Rac8) 17. Bg5 $15 {[%emt 0:10:33]} Rc7 {[%emt 0:11:40]} (17... Ng6 $15) 18. Ne1 $1 $11 {[%emt 0:02:47]} h6 {[%emt 0:14:52]} 19. Bxe7 {[%emt 0:00:53]} Bxe7 {[%emt 0:00:02]} (19... Nxe7 $11 20. Nd3 b4) 20. Bxd5 $16 {[%emt 0:02:26]} exd5 {[%emt 0:00:02]} 21. Ne3 $1 {[%emt 0:00:21]} Qe6 {[%emt 0:05:33]} 22. Nxd5 {[%emt 0:00:36]} (22. Rxd5 f4 23. gxf4 Rxf4 $14) 22... Rc5 {[%emt 0:05:50]} 23. Nxe7+ {[%emt 0:04:30]} Qxe7 {[%emt 0:00:02] [#]} 24. f4 {[%emt 0:01:11]} Bb7 {[%emt 0:01:01]} 25. Rd6 {[%emt 0:01:43]} Rfc8 {[%emt 0:07:42] Black is weak on the dark squares} (25... Rf6 $142 26. Rd2 Rb6) 26. Rcd1 $18 {[%emt 0:00:46]} R8c7 {[%emt 0:00:46]} 27. Nc2 {[%emt 0:11:20]} b4 {[%emt 0:01:37]} 28. Nd4 {[%emt 0:00:05]} (28. cxb4 $2 Rxc2 29. R1d2 Rc1+ 30. Kf2 axb4 $19) 28... bxc3 {[%emt 0:03:48]} 29. bxc3 {[%emt 0:00:54]} (29. Nxf5 Qf8 30. Nxh6+ gxh6 31. Qg4+ Kh8 (31... Qg7 $2 32. Rg6 $18) 32. Rf6 (32. Qh5 R5c6 $11)) 29... Rxc3 $2 {[%emt 0:03:33]} (29... Be4 {might work better.}) 30. Nxf5 {[%emt 0:00:26]} Qf8 {[%emt 0:00:48]} 31. Ne3 {[%emt 0:06:57]} (31. Qg4 $18 {and the rest is easy.} Rc1 32. Rxc1 (32. Nxh6+ Kh8 $11) 32... Rxc1+ 33. Kf2) 31... Rc1 {[%emt 0:04:16] [#]} 32. Rxd7 $3 {[%emt 0:03:21][%mdl 512]} Rxd7 {[%emt 0:01:05]} 33. Rxc1 {[%emt 0:00:02]} Qa3 {[%emt 0:00:52]} 34. Re1 {[%emt 0:01:01] Strongly threatening Qc4+.} Kh8 {[%emt 0:00:32]} (34... Rd3 $16 {was necessary.} 35. e6 Rc3) 35. e6 {[%emt 0:01:14]} Re7 {[%emt 0:00:02]} (35... Rd6 {keeps fighting.} 36. f5 Qb4) 36. f5 {[%emt 0:00:23]} Qc5 {[%emt 0:00:14]} 37. Qg4 {[%emt 0:01:14]} Qc6 {[%emt 0:00:28]} (37... Re8 $142 38. Kf2 Rf8) 38. Kf2 {[%emt 0:00:02]} Re8 {[%emt 0:00:46]} 39. Rd1 {[%emt 0:00:15] Black must now prevent Rd7.} Qc3 {[%emt 0:00:42]} 40. Qd4 {[%emt 0:00:38]} Qc6 {[%emt 0:00:26]} 41. Qf4 {[%emt 0:00:37] Wards off Qf3+} Qc3 {[%emt 0:00:15]} 42. g4 {[%emt 0:00:29]} Qb2+ {[%emt 0:00:38]} 43. Kg3 {[%emt 0:00:04]} Qe2 {[%emt 0:00:58]} 44. f6 {[%emt 0:00:56]} (44. Rd7 $142 Qb2 45. f6 (45. Qd4 Qxd4 46. Rxd4 Kg8 $18) 45... Qxf6 46. Qxf6 (46. Rxb7 Qxe6 47. Nf5 Rd8 $18) 46... gxf6 47. Rxb7 Rxe6 48. Kf4) 44... g5 {[%emt 0:00:25]} 45. Qf2 {[%emt 0:00:33]} Qxf2+ {[%emt 0:00:30]} 46. Kxf2 {[%emt 0:00:05] Intending f7 and mate.} Rf8 {[%emt 0:00:32]} 47. Nf5 {[%emt 0:01:40]} Bc6 {Weighted Error Value: White=0.45/Black=0.61.  Missed win:     	White=1     	---        Mistake:       	White=4     	Black=9      Inaccurate:     	White=1     	Black=4      OK:         	White=18    	Black=6      Best:        	White=2     	Black=3      Strong:       	White=2     	---} 1-0

[Event "SixDays Budapest IM-B January 2024"]
[Site "Budapest"]
[Date "2024.01.31"]
[Round "7.5"]
[White "Egresi, Mate"]
[Black "Varadi, Viktor"]
[Result "1/2-1/2"]
[ECO "B30"]
[WhiteElo "2389"]
[BlackElo "2368"]
[Annotator "TA"]
[PlyCount "166"]
[EventDate "2024.01.26"]
[EventType "tourn"]
[EventCountry "HUN"]
[SourceTitle "playchess.com"]
[Source "ChessBase"]
[SourceQuality "1"]
[TimeControl "5400+30"]

{[%evp 72,166,11,6,38,6,0,0,10,3,26,9,43,37,31,0,0,0,0,0,0,0,0,0,10,0,9,8,10,3,16,20,86,93,95,95,91,87,65,67,111,133,137,126,137,123,208,218,212,210,193,0,0,0,7,0,0,0,0,0,0,0,0,0,0,0,0,0,0,0,0,0,0,0,0,0,0,0,0,0,0,-8,0,0,0,0,0,0,0,-8,-8,-8,-8,-8,0,0,0]} 1. e4 {[%emt 0:07:17]} c5 {[%emt 0:00:07]} 2. Nf3 {[%emt 0:00:07]} Nc6 {[%emt 0:00:08]} 3. Bb5 {[%emt 0:00:05]} e6 {[%emt 0:00:11]} 4. O-O {[%emt 0:01:02]} Nge7 {[%emt 0:00:11]} 5. Re1 {[%emt 0:00:06]} a6 {[%emt 0:01:10]} 6. Bf1 {[%emt 0:00:05]} d5 {[%emt 0:00:28]} 7. exd5 {[%emt 0:00:12]} Nxd5 {[%emt 0:00:08]} 8. d4 {[%emt 0:00:08]} Nf6 {[%emt 0:00:36]} 9. Be3 {[%emt 0:00:21]} cxd4 {[%emt 0:00:59]} 10. Nxd4 {[%emt 0:00:14]} Nxd4 {[%emt 0:03:52]} 11. Bxd4 {[%emt 0:00:56]} Be7 {[%emt 0:01:12]} 12. c4 {[%emt 0:03:19]} Bd7 {[%emt 0:02:30]} 13. Nc3 {[%emt 0:00:30]} O-O {[%emt 0:00:19]} 14. a3 {[%emt 0:00:44]} a5 {[%emt 0:07:30]} 15. Qd3 {[%emt 0:05:19]} Bc6 {[%emt 0:03:06]} 16. h3 {[%emt 0:03:13]} Nd7 {[%emt 0:14:49]} 17. Rad1 {[%emt 0:09:51]} a4 {[%emt 0:08:34]} 18. Qe3 {[%emt 0:07:56]} Bg5 {[%emt 0:09:05]} 19. Qg3 {[%emt 0:04:18]} Bf6 {[%emt 0:00:47]} 20. Bc5 {[%emt 0:09:45]} Re8 {[%emt 0:01:29]} 21. Bb4 {[%emt 0:10:26]} Qb6 {[%emt 0:11:23]} 22. Nb5 {[%emt 0:02:00]} Red8 {[%emt 0:05:06]} 23. Bd6 {[%emt 0:06:18]} Rdc8 {[%emt 0:02:18]} 24. Rd2 {[%emt 0:09:29]} Nc5 {[%emt 0:07:41]} 25. Qe3 {[%emt 0:01:00]} Bxb5 {[%emt 0:01:32]} 26. cxb5 {[%emt 0:00:02]} Nd7 {[%emt 0:03:14]} 27. Qg3 {[%emt 0:00:18]} Nc5 {[%emt 0:01:13]} 28. Qe3 {[%emt 0:00:43]} Nd7 {[%emt 0:00:06]} 29. Qg3 {[%emt 0:05:40]} Nc5 {[%emt 0:03:10]} 30. Be5 {[%emt 0:00:01]} Bxe5 {[%emt 0:00:35]} 31. Qxe5 {[%emt 0:00:01]} Nb3 {[%emt 0:05:13]} 32. Rd6 {[%emt 0:00:23]} Qc5 {[%emt 0:00:14]} 33. Qxc5 {[%emt 0:02:12]} Nxc5 {[%emt 0:00:19]} 34. g3 {[%emt 0:06:34]} Kf8 {[%emt 0:01:26]} 35. b6 {[%emt 0:03:23]} Ke7 {[%emt 0:00:57]} 36. Rd4 {[%emt 0:00:01]} Rc6 {[%emt 0:01:17]} 37. Rc1 {[%emt 0:01:14]} Rac8 {[%emt 0:02:49]} 38. Rb4 {[%emt 0:00:02]} Nd7 {[%emt 0:00:55]} 39. Rxc6 {[%emt 0:01:37]} Rxc6 {[%emt 0:00:01]} 40. Rxa4 {[%emt 0:00:10]} Rxb6 {[%emt 0:00:06]} 41. b4 {[%emt 0:00:09]} Kd6 {[%emt 0:01:11]} 42. Ra8 {[%emt 0:00:19]} Rc6 {[%emt 0:00:31]} 43. Bb5 {[%emt 0:01:38]} Rc1+ {[%emt 0:00:11]} 44. Kg2 {[%emt 0:00:01]} Nf6 {[%emt 0:00:51]} 45. Rd8+ {[%emt 0:00:48]} Ke7 {[%emt 0:00:19]} 46. Rb8 {[%emt 0:00:06]} Rc7 {[%emt 0:00:04]} 47. Be2 {[%emt 0:00:46]} Nd5 {[%emt 0:00:26]} 48. h4 {[%emt 0:01:47]} Kd6 {[%emt 0:00:30]} 49. h5 {[%emt 0:00:20]} h6 {[%emt 0:00:09]} 50. Bf3 {[%emt 0:00:28]} Rd7 {[%emt 0:01:02]} 51. Kf1 {[%emt 0:00:29]} Kc7 {[%emt 0:00:11]} (51... Rc7 $11 {remains equal.}) 52. Rg8 $16 {[%emt 0:00:22]} f6 {[%emt 0:00:19]} 53. Bxd5 $1 {[%emt 0:00:16]} exd5 {[%emt 0:00:06]} 54. Ke2 {[%emt 0:00:04]} Kd6 {[%emt 0:01:20]} 55. Kd3 {[%emt 0:00:11]} Rc7 {[%emt 0:00:46]} 56. Rb8 {[%emt 0:01:22]} Re7 {[%emt 0:00:38]} 57. a4 {[%emt 0:01:19]} Kc6 {[%emt 0:00:13]} 58. Rc8+ {[%emt 0:00:05]} Kd7 {[%emt 0:00:14] [#]} (58... Kd6 $16 {might work better.} 59. f3 Re1) 59. Rg8 $1 $18 {[%emt 0:00:27]} Kc6 {[%emt 0:00:14]} 60. f3 {[%emt 0:00:06]} b6 {[%emt 0:00:49] [#]} 61. Kd4 $2 {[%emt 0:00:19]} (61. Rc8+ $1 $18 Kb7 62. Rc1) 61... Ra7 $1 $11 {[%emt 0:00:31]} 62. Rc8+ {[%emt 0:01:03]} Kd6 {[%emt 0:01:02]} 63. Rb8 {[%emt 0:00:17]} Kc7 {[%emt 0:00:23]} 64. Rg8 {[%emt 0:00:04]} Kc6 {[%emt 0:00:33]} 65. a5 {[%emt 0:00:46]} bxa5 {[%emt 0:00:05]} 66. bxa5 {[%emt 0:00:01]} Rxa5 {[%emt 0:00:50]} 67. Rxg7 {[%emt 0:00:01]} Ra4+ {[%emt 0:00:56]} 68. Ke3 {[%emt 0:00:13]} Kc5 {[%emt 0:01:33]} 69. Rg6 {[%emt 0:00:44]} d4+ {[%emt 0:00:17]} 70. Ke4 {[%emt 0:01:34]} Ra6 {[%emt 0:00:27]} 71. Rg8 {[%emt 0:00:34]} (71. Rxh6 $2 {is the wrong capture.} f5+ 72. Kd3 Rxh6 $19) 71... Re6+ {[%emt 0:00:41]} 72. Kd3 {[%emt 0:01:56]} Re3+ {[%emt 0:00:08]} 73. Kd2 {[%emt 0:00:00]} Rxf3 {[%emt 0:00:08]} 74. Rg6 {[%emt 0:00:55]} f5 {[%emt 0:01:20]} 75. Rxh6 {[%emt 0:00:21]} Rxg3 {[%emt 0:00:09]} 76. Rf6 {[%emt 0:00:19]} Rf3 {[%emt 0:00:31]} 77. h6 {[%emt 0:00:16]} Kc4 {[%emt 0:00:13]} 78. h7 {[%emt 0:01:12]} Rf2+ {[%emt 0:00:06]} 79. Ke1 {[%emt 0:00:09]} Rh2 {[%emt 0:00:04]} 80. Rxf5 {[%emt 0:00:20]} Rxh7 {[%emt 0:01:12]} 81. Rf3 {[%emt 0:00:04]} Rh2 {[%emt 0:01:32]} 82. Kd1 {[%emt 0:00:05]} d3 {[%emt 0:00:46]} 83. Rf8 {[%emt 0:00:05]} Rh1+ {[%emt 0:00:22]} 1/2-1/2

[Event "SixDays Budapest IM-B January 2024"]
[Site "Budapest"]
[Date "2024.01.31"]
[Round "8.1"]
[White "Sgircea, Silvia-Raluca"]
[Black "Varadi, Viktor"]
[Result "0-1"]
[ECO "D71"]
[WhiteElo "2242"]
[BlackElo "2368"]
[Annotator "RC"]
[PlyCount "108"]
[EventDate "2024.01.26"]
[EventType "tourn"]
[EventCountry "HUN"]
[SourceTitle "playchess.com"]
[Source "ChessBase"]
[SourceQuality "1"]
[TimeControl "5400+30"]

1. d4 {[%emt 0:00:06]} Nf6 {[%emt 0:00:06]} 2. c4 {[%emt 0:00:52]} g6 {[%emt 0:00:09]} 3. g3 {[%emt 0:00:05]} Bg7 {[%emt 0:00:08]} 4. Bg2 {[%emt 0:00:05]} d5 {[%emt 0:00:08]} 5. cxd5 {[%emt 0:01:44]} Nxd5 {[%emt 0:00:07]} 6. Nc3 {[%emt 0:01:01]} Nb6 {[%emt 0:00:29]} 7. Nf3 {[%emt 0:02:15]} O-O {[%emt 0:02:44]} 8. O-O {[%emt 0:00:06]} Nc6 {[%emt 0:01:29]} 9. e3 {[%emt 0:01:13]} e5 {[%emt 0:08:44]} 10. dxe5 {[%emt 0:04:37]} Nxe5 {[%emt 0:01:53]} 11. Nxe5 {[%emt 0:01:08]} Bxe5 {[%emt 0:00:12]} 12. Qc2 {[%emt 0:00:39]} c6 {[%emt 0:04:15]} 13. b3 {[%emt 0:14:33]} Bf5 {[%emt 0:17:04]} 14. e4 {[%emt 0:00:24]} Be6 {[%emt 0:00:10]} 15. Be3 {[%emt 0:02:04]} f5 {[%emt 0:05:32]} 16. Rad1 {[%emt 0:12:22]} Qf6 {[%emt 0:04:42]} 17. exf5 {[%emt 0:01:15]} gxf5 {[%emt 0:06:16]} 18. Ne2 {[%emt 0:00:34]} Nd5 {[%emt 0:02:29]} 19. Bd4 {[%emt 0:02:14]} f4 {[%emt 0:04:53]} 20. Bxe5 {[%emt 0:09:40]} Qxe5 {[%emt 0:00:06]} 21. gxf4 {[%emt 0:01:14]} Rxf4 {[%emt 0:06:11]} 22. Rd3 {[%emt 0:00:45]} Rg4 {[%emt 0:02:46]} 23. Rg3 {[%emt 0:00:38]} Bf5 {[%emt 0:08:31]} 24. Qd2 {[%emt 0:02:02]} Re8 {[%emt 0:02:00]} 25. Bf3 {[%emt 0:07:08]} Rg7 {[%emt 0:03:32]} 26. Qd4 {[%emt 0:03:05]} Qxd4 {[%emt 0:02:19]} 27. Nxd4 {[%emt 0:00:02]} Bg6 {[%emt 0:00:32]} 28. Bxd5+ {[%emt 0:08:00]} cxd5 {[%emt 0:00:06]} 29. Rd1 {[%emt 0:00:42]} Bh5 {[%emt 0:05:00]} 30. Rxg7+ {[%emt 0:03:41]} Kxg7 {[%emt 0:00:06]} 31. f3 {[%emt 0:00:09]} Kf6 {[%emt 0:01:17]} 32. Kf2 {[%emt 0:05:57]} Ke5 {[%emt 0:00:32]} 33. Ne2 {[%emt 0:06:19]} Rc8 {[%emt 0:03:47]} 34. Rd2 {[%emt 0:00:06]} a5 {[%emt 0:00:49]} 35. Ng3 {[%emt 0:03:19]} Bg6 {[%emt 0:01:01]} 36. Ne2 {[%emt 0:00:21]} b5 {[%emt 0:02:10]} 37. b4 {[%emt 0:02:48]} axb4 {[%emt 0:00:31]} 38. f4+ {[%emt 0:00:12]} Kd6 {[%emt 0:00:05]} 39. Nd4 {[%emt 0:00:04]} Rc4 {[%emt 0:01:35]} 40. f5 {[%emt 0:02:01]} Bf7 {[%emt 0:02:04]} 41. Ke3 {[%emt 0:00:26]} Ke5 {[%emt 0:00:18]} 42. Nxb5 {[%emt 0:03:42]} Rh4 {[%emt 0:00:58]} 43. Rf2 {[%emt 0:01:12]} d4+ {[%emt 0:00:47]} 44. Kd3 {[%emt 0:00:43]} Rh3+ {[%emt 0:00:10]} 45. Kd2 {[%emt 0:00:01]} Bxa2 {[%emt 0:00:20]} 46. Re2+ {[%emt 0:00:46]} Kd5 {[%emt 0:00:36]} 47. f6 {[%emt 0:00:14]} Rf3 {[%emt 0:00:48]} 48. Nc7+ {[%emt 0:00:20]} Kc6 {[%emt 0:01:11]} 49. Ne8 {[%emt 0:01:29]} Bf7 {[%emt 0:01:09]} 50. Re7 {[%emt 0:00:24]} Bg6 {[%emt 0:00:25]} 51. Rc7+ {[%emt 0:00:19]} Kb6 {[%emt 0:00:21]} 52. Re7 {[%emt 0:00:43]} b3 {[%emt 0:00:31]} 53. Re6+ {[%emt 0:00:27]} Kc5 {[%emt 0:00:41]} 54. Nd6 {[%emt 0:00:31]} Kd5 {[%emt 0:01:06]} 0-1

[Event "SixDays Budapest IM-B January 2024"]
[Site "Budapest"]
[Date "2024.01.31"]
[Round "8.2"]
[White "Mouhamad, Joachim"]
[Black "Egresi, Mate"]
[Result "0-1"]
[ECO "B07"]
[WhiteElo "2316"]
[BlackElo "2389"]
[Annotator "RC"]
[PlyCount "110"]
[EventDate "2024.01.26"]
[EventType "tourn"]
[EventCountry "HUN"]
[SourceTitle "playchess.com"]
[Source "ChessBase"]
[SourceQuality "1"]
[TimeControl "5400+30"]

1. e4 {[%emt 0:00:11]} d6 {[%emt 0:00:07]} 2. d4 {[%emt 0:00:28]} Nf6 {[%emt 0:00:03]} 3. Nc3 {[%emt 0:00:08]} e5 {[%emt 0:00:02]} 4. dxe5 {[%emt 0:00:08]} dxe5 {[%emt 0:00:05]} 5. Qxd8+ {[%emt 0:00:10]} Kxd8 {[%emt 0:00:03]} 6. Bc4 {[%emt 0:00:08]} Ke8 {[%emt 0:00:09]} 7. f4 {[%emt 0:00:09]} Nbd7 {[%emt 0:05:36]} 8. Nf3 {[%emt 0:00:37]} Bd6 {[%emt 0:10:36]} 9. g3 {[%emt 0:01:26]} a6 {[%emt 0:02:16]} 10. a4 {[%emt 0:00:35]} b6 {[%emt 0:01:17]} 11. Bd2 {[%emt 0:13:51]} Bb7 {[%emt 0:01:19]} 12. O-O-O {[%emt 0:00:16]} b5 {[%emt 0:29:04]} 13. Ba2 {[%emt 0:08:02]} bxa4 {[%emt 0:06:15]} 14. Nxa4 {[%emt 0:06:21]} Nxe4 {[%emt 0:01:07]} 15. fxe5 {[%emt 0:06:11]} Nxd2 {[%emt 0:05:44]} 16. Nxd2 {[%emt 0:00:43]} Bxh1 {[%emt 0:03:50]} 17. exd6 {[%emt 0:00:09]} Bc6 {[%emt 0:00:11]} 18. Nc3 {[%emt 0:01:20]} cxd6 {[%emt 0:11:34]} 19. Nc4 {[%emt 0:00:14]} Ke7 {[%emt 0:07:36]} 20. Nxd6 {[%emt 0:00:46]} Ne5 {[%emt 0:02:20]} 21. Nf5+ {[%emt 0:00:52]} Kf8 {[%emt 0:00:59]} 22. Nd4 {[%emt 0:11:19]} Rc8 {[%emt 0:02:32]} 23. Nxc6 {[%emt 0:02:19]} Nxc6 {[%emt 0:00:11]} 24. Rd7 {[%emt 0:00:13]} Ne5 {[%emt 0:04:35]} 25. Ra7 {[%emt 0:00:32]} g6 {[%emt 0:00:12]} 26. Ne4 {[%emt 0:01:29]} Kg7 {[%emt 0:00:56]} 27. Nd6 {[%emt 0:08:44]} Ra8 {[%emt 0:00:26]} 28. Rc7 {[%emt 0:00:02]} Rhd8 {[%emt 0:01:14]} 29. Nxf7 {[%emt 0:00:45]} Rd7 {[%emt 0:01:00]} 30. Rxd7 {[%emt 0:00:37]} Nxd7 {[%emt 0:00:01]} 31. Ng5 {[%emt 0:01:13]} h6 {[%emt 0:00:53]} 32. Ne6+ {[%emt 0:00:23]} Kf6 {[%emt 0:00:17]} 33. Nc7 {[%emt 0:03:36]} Ra7 {[%emt 0:00:54]} 34. Nd5+ {[%emt 0:00:17]} Ke5 {[%emt 0:00:02]} 35. Ne7 {[%emt 0:00:16]} Kf6 {[%emt 0:00:38]} 36. Nd5+ {[%emt 0:00:33]} Kf5 {[%emt 0:00:34]} 37. Ne3+ {[%emt 0:08:52]} Ke4 {[%emt 0:00:43]} 38. Kd2 {[%emt 0:00:02]} Nb6 {[%emt 0:01:02]} 39. c4 {[%emt 0:01:19]} Rd7+ {[%emt 0:02:00]} 40. Ke2 {[%emt 0:00:16]} Re7 {[%emt 0:00:01]} 41. Kf2 {[%emt 0:05:38]} Rf7+ {[%emt 0:00:11]} 42. Ke2 {[%emt 0:00:09]} Re7 {[%emt 0:00:02]} 43. Kf2 {[%emt 0:00:06]} Kd3 {[%emt 0:00:54]} 44. Bb1+ {[%emt 0:02:49]} Kd4 {[%emt 0:00:48]} 45. Nd1 {[%emt 0:06:12]} Nxc4 {[%emt 0:00:42]} 46. Bxg6 {[%emt 0:00:06]} Rb7 {[%emt 0:00:10]} 47. h4 {[%emt 0:02:09]} Nxb2 {[%emt 0:00:15]} 48. Nxb2 {[%emt 0:00:39]} Rxb2+ {[%emt 0:00:05]} 49. Kf3 {[%emt 0:00:06]} a5 {[%emt 0:01:35]} 50. Be8 {[%emt 0:00:50]} Rb8 {[%emt 0:00:22]} 51. Bd7 {[%emt 0:00:19]} Rb7 {[%emt 0:00:05]} 52. Be8 {[%emt 0:00:23]} Ke5 {[%emt 0:00:13]} 53. g4 {[%emt 0:01:16]} Rb8 {[%emt 0:00:52]} 54. Bd7 {[%emt 0:00:31]} Rb4 {[%emt 0:00:01]} 55. Ke3 {[%emt 0:01:26]} a4 {[%emt 0:00:04]} 0-1